bitfinex-derivatives/quotes_BTCF0:USTF0_20250108
["timestamp","ask_amount","ask_price","bid_price","bid_amount"]
[1736347252781,0.3608,95242.0,95231.0,0.47076]
[1736347252975,0.052509,95245.0,95241.0,0.3608]
[1736347253179,0.052507,95249.0,95241.0,0.3608]
[1736347253385,0.052507,95248.0,95239.0,0.052512]
[1736347253684,0.3608,95261.0,95233.0,0.3608]
[1736347253981,0.061505,95251.0,95250.0,0.001]
[1736347254382,0.009,95251.0,95250.0,0.001]
[1736347254984,0.061505,95251.0,95250.0,0.001]
[1736347255293,0.052507,95248.0,95236.0,0.052513]
[1736347255586,0.3608,95238.0,95231.0,0.47076]
[1736347255881,0.05251,95243.0,95231.0,0.47076]
[1736347256085,0.3608,95243.0,95231.0,0.47076]
[1736347256283,0.3608,95243.0,95238.0,0.052512]
[1736347256986,0.3608,95243.0,95239.0,0.001]
[1736347257382,0.052511,95241.0,95239.0,0.001]
[1736347257574,0.3608,95243.0,95239.0,0.001]
[1736347257785,0.3608,95243.0,95224.0,0.4706]
[1736347257984,0.2443149,95250.0,95224.0,0.4706]
[1736347257985,0.7216,95231.0,95224.0,0.4706]
[1736347258188,0.7216,95231.0,95213.0,0.00011788]
[1736347258383,0.3608,95231.0,95225.0,0.052519]
[1736347258586,0.3608,95231.0,95227.0,0.052518]
[1736347258885,0.3608,95231.0,95216.0,0.3608]
[1736347258886,0.3608,95231.0,95229.0,0.052517]
[1736347259081,0.3608,95249.0,95245.0,0.052509]
[1736347259388,0.3608,95249.0,95237.0,0.3608]
[1736347259589,0.3608,95249.0,95248.0,0.052507]
[1736347259789,0.3608,95249.0,95240.0,0.052511]
[1736347259991,0.3608,95241.0,95210.0,0.4706]
[1736347260289,0.3608,95227.0,95226.0,0.052519]
[1736347260488,0.3608,95241.0,95221.0,0.3608]
[1736347260885,0.3608,95241.0,95235.0,0.052514]
[1736347261088,0.052512,95239.0,95227.0,0.052519]
[1736347261291,0.3608,95228.0,95213.0,0.00011788]
[1736347261590,0.3608,95241.0,95238.0,0.052513]
[1736347261889,0.3608,95241.0,95227.0,0.052519]
[1736347262192,0.052522,95222.0,95213.0,0.00011788]
[1736347262392,0.413326,95214.0,95213.0,0.00011788]
[1736347263287,0.3608,95214.0,95213.0,0.00011788]
[1736347263589,0.413326,95214.0,95213.0,0.00211788]
[1736347264490,0.413326,95214.0,95187.0,0.052541]
[1736347264491,0.052534,95201.0,95187.0,0.052541]
[1736347264679,0.3608,95197.0,95182.0,0.052543]
[1736347264884,0.3608,95197.0,95190.0,0.052539]
[1736347265185,0.3608,95197.0,95192.0,0.052538]
[1736347265592,0.00010401,95196.0,95192.0,0.052538]
[1736347265784,0.00010401,95196.0,95176.0,0.00157588]
[1736347265987,0.3608,95179.0,95176.0,0.00157588]
[1736347266386,0.3608,95178.0,95176.0,0.00157588]
[1736347266585,0.41345808,95178.0,95176.0,0.00157588]
[1736347267194,0.41345808,95178.0,95176.0,0.00357588]
[1736347267789,0.36091208,95178.0,95176.0,0.00357588]
[1736347268782,0.36291208,95178.0,95176.0,0.00157588]
[1736347269096,0.36291208,95178.0,95176.0,0.05412288]
[1736347269492,0.3608,95196.0,95192.0,0.052538]
[1736347269691,0.3608,95196.0,95180.0,0.052544]
[1736347269888,0.3608,95202.0,95189.0,0.3608]
[1736347270097,0.052527,95213.0,95199.0,0.3608]
[1736347270400,0.00064,95215.0,95213.0,0.052526]
[1736347270702,0.05251,95243.0,95234.0,0.052515]
[1736347270889,0.3608,95251.0,95228.0,0.47064]
[1736347271200,0.3608,95262.0,95236.0,0.3608]
[1736347271393,0.3608,95262.0,95260.0,0.0525]
[1736347271588,0.3608,95262.0,95246.0,0.3608]
[1736347271589,0.3608,95262.0,95251.0,0.47064]
[1736347271790,0.0525,95261.0,95246.0,0.3608]
[1736347271993,0.3608,95262.0,95247.0,0.47064]
[1736347272192,0.3608,95271.0,95249.0,0.052506]
[1736347272498,0.3608,95271.0,95246.0,0.3608]
[1736347272499,0.3608,95260.0,95254.0,0.052503]
[1736347272688,0.3608,95275.0,95257.0,0.3608]
[1736347272883,0.3608,95294.0,95290.0,0.052484]
[1736347273088,0.052486,95287.0,95279.0,0.05249]
[1736347273284,0.3608,95293.0,95284.0,0.052487]
[1736347273590,0.3608,95293.0,95277.0,0.3608]
[1736347273801,0.3608,95293.0,95284.0,0.052487]
[1736347273988,0.3608,95285.0,95268.0,0.3608]
[1736347274186,0.052493,95274.0,95267.0,0.052496]
[1736347274597,0.3608,95268.0,95250.0,0.47056]
[1736347274802,0.3608,95254.0,95242.0,0.3608]
[1736347274995,0.3608,95254.0,95237.0,0.3608]
[1736347274996,0.052506,95250.0,95241.0,0.05408581]
[1736347275591,0.3608,95243.0,95241.0,0.05408581]
[1736347275787,0.05251,95242.0,95241.0,0.00157481]
[1736347276203,0.3608,95243.0,95241.0,0.00157481]
[1736347276995,0.41331,95243.0,95241.0,0.00157481]
[1736347277203,0.0993,95242.0,95220.0,0.00010698]
[1736347277400,0.413322,95221.0,95220.0,0.00010698]
[1736347277999,0.3608,95221.0,95197.0,0.052535]
[1736347278197,0.052514,95236.0,95193.0,0.24932118]
[1736347278198,0.3608,95201.0,95193.0,0.24932118]
[1736347278400,0.3608,95197.0,95193.0,0.24932118]
[1736347278689,0.052537,95195.0,95193.0,0.24932118]
[1736347278892,0.3608,95197.0,95173.0,0.00157584]
[1736347279094,0.3608,95179.0,95173.0,0.00157584]
[1736347279600,0.052548,95174.0,95173.0,0.00157584]
[1736347281193,0.00011466,95178.0,95173.0,0.00157584]
[1736347281394,0.052547,95176.0,95173.0,0.00157584]
[1736347281997,0.053548,95174.0,95173.0,0.00157584]
[1736347282405,0.052555,95161.0,95144.0,0.068364]
[1736347282603,0.001,95174.0,95137.0,0.4706]
[1736347282604,0.3608,95145.0,95137.0,0.0006]
[1736347282799,0.3608,95145.0,95131.0,0.1039]
[1736347282998,0.3608,95136.0,95131.0,0.1039]
[1736347283505,0.3608,95136.0,95124.0,0.00157675]
[1736347283704,0.36090696,95136.0,95124.0,0.00157675]
[1736347285598,0.36090696,95136.0,95135.0,0.00110054]
[1736347287404,0.36090696,95136.0,95135.0,0.00010054]
[1736347287617,0.00010696,95136.0,95135.0,0.00010054]
[1736347288505,0.00010696,95136.0,95135.0,0.05266954]
[1736347289701,0.00010696,95136.0,95135.0,0.41346954]
[1736347289908,0.3608,95155.0,95148.0,0.052562]
[1736347290201,0.3608,95155.0,95140.0,0.2443149]
[1736347290398,0.3608,95155.0,95145.0,0.3608]
[1736347290599,0.3608,95161.0,95154.0,0.052559]
[1736347290807,0.052557,95157.0,95149.0,0.052561]
[1736347291007,0.3608,95152.0,95140.0,0.053167]
[1736347291207,0.052566,95142.0,95140.0,0.0006]
[1736347291405,0.3608,95152.0,95135.0,0.36390054]
[1736347291711,0.052556,95159.0,95154.0,0.052559]
[1736347291908,0.3608,95163.0,95143.0,0.3608]
[1736347292113,0.3608,95163.0,95149.0,0.001]
[1736347292299,0.3608,95164.0,95149.0,0.001]
[1736347292505,0.052558,95156.0,95149.0,0.001]
[1736347292816,0.3608,95164.0,95149.0,0.001]
[1736347293012,0.3608,95156.0,95149.0,0.001]
[1736347293210,0.05256,95153.0,95149.0,0.001]
[1736347293507,0.052561,95151.0,95149.0,0.001]
[1736347293707,0.052561,95151.0,95149.0,0.053562]
[1736347294113,0.3608,95154.0,95136.0,0.47084]
[1736347294114,0.052566,95142.0,95136.0,0.47084]
[1736347294308,0.3608,95154.0,95118.0,0.47084]
[1736347294309,0.052569,95136.0,95118.0,0.47084]
[1736347294611,0.052569,95136.0,95131.0,0.052571]
[1736347295114,0.3608,95143.0,95129.0,0.0158]
[1736347295313,0.3608,95154.0,95141.0,0.3608]
[1736347295513,0.3608,95167.0,95149.0,0.3608]
[1736347295812,0.052549,95173.0,95150.0,0.2443149]
[1736347296010,0.052544,95181.0,95160.0,0.2443149]
[1736347296204,0.3608,95184.0,95182.0,0.052543]
[1736347296516,0.12449939,95189.0,95188.0,0.05254]
[1736347296813,0.12449939,95189.0,95183.0,0.3608]
[1736347296814,0.3608,95196.0,95180.0,0.052544]
[1736347296999,0.3608,95196.0,95174.0,0.3608]
[1736347297205,0.052542,95185.0,95178.0,0.052545]
[1736347297412,0.3608,95186.0,95163.0,0.3608]
[1736347297616,0.3608,95186.0,95168.0,0.052551]
[1736347297617,0.052548,95174.0,95168.0,0.052551]
[1736347297803,0.052548,95174.0,95160.0,0.00157616]
[1736347297804,0.3608,95177.0,95160.0,0.00157616]
[1736347298005,0.052543,95183.0,95176.0,0.052547]
[1736347298310,0.3608,95186.0,95160.0,0.00157616]
[1736347298510,0.3608,95186.0,95170.0,0.6051149]
[1736347298904,0.3608,95186.0,95184.0,0.052542]
[1736347299814,0.3608,95186.0,95170.0,0.3608]
[1736347300418,0.3608,95177.0,95173.0,0.052548]
[1736347300600,0.3608,95177.0,95159.0,0.4708]
[1736347300601,0.3608,95177.0,95175.0,0.052547]
[1736347301208,0.3608,95186.0,95185.0,0.052542]
[1736347301611,0.413341,95186.0,95184.0,0.002]
[1736347302120,0.413341,95186.0,95157.0,0.052557]
[1736347302121,0.103,95185.0,95157.0,0.052557]
[1736347302308,0.3608,95166.0,95150.0,0.3608]
[1736347302509,0.3608,95166.0,95165.0,0.052553]
[1736347302913,0.3608,95176.0,95174.0,0.052548]
[1736347303111,0.3608,95186.0,95183.0,0.052543]
[1736347303315,0.3618,95186.0,95183.0,0.052543]
[1736347303814,0.052544,95182.0,95171.0,0.3608]
[1736347304013,0.3608,95175.0,95166.0,0.052552]
[1736347304316,0.3608,95175.0,95163.0,0.0006]
[1736347304317,0.052553,95165.0,95163.0,0.0006]
[1736347304517,0.052553,95165.0,95160.0,0.052556]
[1736347304707,0.3608,95161.0,95134.0,0.0158]
[1736347305011,0.3608,95163.0,95135.0,0.05266954]
[1736347305012,0.413367,95140.0,95135.0,0.05266954]
[1736347305218,0.413367,95140.0,95135.0,0.00010054]
[1736347306908,0.413367,95140.0,95137.0,0.052568]
[1736347307409,0.413367,95140.0,95135.0,0.00010054]
[1736347307609,0.052563,95147.0,95135.0,0.00010054]
[1736347308212,0.052564,95146.0,95144.0,0.052564]
[1736347308917,0.052567,95140.0,95135.0,0.00010054]
[1736347309114,0.3608,95139.0,95135.0,0.00010054]
[1736347309705,0.3608,95139.0,95135.0,0.05266954]
[1736347310116,0.3608,95139.0,95137.0,0.052568]
[1736347310614,0.3608,95139.0,95135.0,0.00010054]
[1736347311022,0.052569,95136.0,95135.0,0.00010054]
[1736347311210,0.3608,95139.0,95116.0,0.24932118]
[1736347311410,0.3608,95117.0,95116.0,0.24932118]
[1736347312309,0.36088469,95117.0,95110.0,0.052583]
[1736347312509,0.052583,95111.0,95105.0,0.01313411]
[1736347312711,0.413385,95108.0,95105.0,0.01313411]
[1736347312914,0.052585,95107.0,95105.0,0.01313411]
[1736347314413,0.3608,95108.0,95105.0,0.01313411]
[1736347314822,0.36088469,95117.0,95105.0,0.01313411]
[1736347315011,0.36088469,95117.0,95110.0,0.052583]
[1736347315719,0.41346469,95117.0,95110.0,0.052583]
[1736347316123,0.41346469,95117.0,95110.0,0.053583]
[1736347316323,0.36088469,95117.0,95110.0,0.001]
[1736347316525,0.36088469,95117.0,95116.0,0.41338]
[1736347316526,8.469e-05,95117.0,95116.0,0.41338]
[1736347316723,0.12449939,95140.0,95139.0,0.052567]
[1736347317617,0.413364,95146.0,95133.0,0.0006]
[1736347317819,4.592e-05,95145.0,95132.0,0.3608]
[1736347318215,4.592e-05,95145.0,95144.0,0.052565]
[1736347318826,4.592e-05,95145.0,95144.0,0.523525]
[1736347319529,4.592e-05,95145.0,95144.0,0.052565]
[1736347319923,4.592e-05,95145.0,95134.0,0.05257]
[1736347320126,0.3608,95139.0,95127.0,0.052574]
[1736347320425,0.3608,95129.0,95122.0,0.24932118]
[1736347320631,0.3608,95129.0,95128.0,0.052573]
[1736347320826,0.3608,95139.0,95122.0,0.24932118]
[1736347321126,4.592e-05,95145.0,95143.0,0.052565]
[1736347321823,0.12449939,95156.0,95144.0,0.04712947]
[1736347322019,0.12449939,95156.0,95150.0,0.052561]
[1736347322020,0.3608,95155.0,95150.0,0.052561]
[1736347322212,0.052557,95159.0,95144.0,0.47096]
[1736347322417,0.052552,95167.0,95144.0,0.47164]
[1736347322612,0.3608,95171.0,95148.0,0.3608]
[1736347322826,0.48529939,95176.0,95159.0,0.3608]
[1736347323021,0.48529939,95176.0,95175.0,0.3608]
[1736347323022,0.12449939,95176.0,95175.0,0.3608]
[1736347323225,0.12449939,95176.0,95175.0,0.413347]
[1736347323526,0.3608,95202.0,95175.0,0.40793524]
[1736347323527,0.12449939,95189.0,95175.0,0.40793524]
[1736347323736,0.12449939,95189.0,95187.0,0.05254]
[1736347324022,0.12449939,95189.0,95187.0,0.052541]
[1736347324222,0.12449939,95189.0,95167.0,0.3608]
[1736347324430,0.3608,95175.0,95168.0,0.04713754]
[1736347324630,0.052546,95178.0,95174.0,0.052548]
[1736347324819,0.052546,95178.0,95157.0,0.47096]
[1736347325019,0.052546,95178.0,95176.0,0.052546]
[1736347325215,0.3608,95184.0,95183.0,0.052543]
[1736347325527,0.1089,95215.0,95179.0,0.3608]
[1736347325714,0.052521,95223.0,95211.0,0.052527]
[1736347325915,0.3608,95216.0,95202.0,0.3608]
[1736347326229,0.3608,95208.0,95183.0,0.052542]
[1736347326525,0.3608,95208.0,95181.0,0.47088]
[1736347326825,0.41333,95208.0,95194.0,0.052537]
[1736347327027,0.3608,95208.0,95197.0,0.052535]
[1736347327213,0.3608,95200.0,95188.0,0.3608]
[1736347327420,0.3608,95192.0,95180.0,0.052544]
[1736347327620,0.3608,95183.0,95168.0,0.3608]
[1736347327822,0.3608,95183.0,95170.0,0.2443149]
[1736347328124,0.3608,95201.0,95180.0,0.3608]
[1736347328316,0.3608,95201.0,95189.0,0.05254]
[1736347328317,0.413333,95201.0,95189.0,0.05254]
[1736347328523,0.052536,95196.0,95189.0,0.05254]
[1736347328726,0.3608,95201.0,95194.0,0.052537]
[1736347329031,0.3608,95201.0,95180.0,0.3608]
[1736347329032,0.052536,95196.0,95189.0,0.05254]
[1736347329620,0.3608,95201.0,95180.0,0.3608]
[1736347329821,0.052534,95199.0,95191.0,0.052538]
[1736347330221,0.3608,95193.0,95161.0,0.3608]
[1736347330421,0.3608,95193.0,95162.0,0.51791062]
[1736347330627,0.052538,95192.0,95178.0,0.052545]
[1736347330829,0.052539,95191.0,95181.0,0.052544]
[1736347331026,0.052539,95191.0,95183.0,0.052543]
[1736347331525,0.2443149,95220.0,95162.0,0.47084]
[1736347331526,0.002,95199.0,95186.0,0.3608]
[1736347331733,0.002,95199.0,95198.0,0.413335]
[1736347331919,0.3608,95226.0,95221.0,0.052522]
[1736347332532,0.052521,95224.0,95210.0,0.47076]
[1736347332729,0.3608,95217.0,95198.0,0.3608]
[1736347332921,0.3608,95217.0,95197.0,0.3608]
[1736347333126,0.3608,95226.0,95221.0,0.052522]
[1736347333436,0.3608,95226.0,95206.0,0.3608]
[1736347333633,0.3608,95238.0,95227.0,0.052519]
[1736347333827,0.052513,95237.0,95215.0,0.3608]
[1736347334034,0.3608,95238.0,95220.0,0.2443149]
[1736347334336,0.3608,95238.0,95236.0,0.052513]
[1736347334525,0.3608,95238.0,95225.0,0.41332]
[1736347334526,0.007,95226.0,95225.0,0.41332]
[1736347334725,0.007,95226.0,95225.0,0.05252]
[1736347335448,0.007,95226.0,95197.0,0.01576]
[1736347335735,0.007,95226.0,95193.0,0.47068]
[1736347335736,0.3608,95207.0,95194.0,0.052537]
[1736347335939,0.052534,95199.0,95193.0,0.47068]
[1736347336131,0.413334,95199.0,95193.0,0.47132]
[1736347336331,0.052537,95194.0,95193.0,0.47068]
[1736347336634,0.413317,95230.0,95196.0,0.052535]
[1736347336835,0.3608,95241.0,95220.0,0.2443149]
[1736347337035,0.3608,95241.0,95221.0,0.523202]
[1736347337328,0.052518,95228.0,95221.0,0.47068]
[1736347337534,0.12434554,95231.0,95221.0,0.523202]
[1736347337931,0.001,95230.0,95221.0,0.47068]
[1736347338328,0.001,95230.0,95228.0,0.052518]
[1736347338525,0.001,95230.0,95220.0,0.052522]
[1736347338829,0.001,95230.0,95224.0,0.05252]
[1736347339034,0.001,95230.0,95228.0,0.052518]
[1736347340121,0.3608,95240.0,95222.0,0.052521]
[1736347340322,0.3608,95240.0,95220.0,0.7149549]
[1736347340528,0.3608,95240.0,95210.0,0.7674829]
[1736347340731,0.3608,95240.0,95233.0,0.052515]
[1736347340933,0.3608,95240.0,95203.0,0.3608]
[1736347340934,0.3608,95232.0,95203.0,0.3608]
[1736347341136,0.3608,95215.0,95214.0,0.052525]
[1736347341429,0.3608,95215.0,95195.0,0.052536]
[1736347341430,0.052532,95204.0,95195.0,0.052536]
[1736347341637,0.3608,95201.0,95193.0,0.47124]
[1736347341829,0.3608,95201.0,95199.0,0.052534]
[1736347342024,0.3608,95215.0,95210.0,0.052528]
[1736347342328,0.3608,95215.0,95213.0,0.052526]
[1736347343125,0.1073,95233.0,95212.0,0.3608]
[1736347343328,0.002,95240.0,95233.0,0.052515]
[1736347343633,0.002,95240.0,95239.0,0.052512]
[1736347343838,0.3608,95243.0,95234.0,0.4712]
[1736347344023,0.3608,95243.0,95242.0,0.05251]
[1736347344522,0.12434554,95254.0,95253.0,0.052504]
[1736347344721,5.4e-07,95254.0,95253.0,0.413304]
[1736347344929,0.3608,95292.0,95256.0,0.052503]
[1736347344930,0.052488,95284.0,95256.0,0.052503]
[1736347345131,0.052489,95281.0,95272.0,0.052494]
[1736347345327,0.3608,95282.0,95253.0,0.3608]
[1736347345530,0.3608,95282.0,95262.0,0.3608]
[1736347345931,0.3608,95282.0,95281.0,0.052489]
[1736347346433,0.3608,95292.0,95286.0,0.052486]
[1736347346631,0.1,95300.0,95299.0,0.052479]
[1736347347433,0.1,95300.0,95291.0,0.052483]
[1736347347641,0.052485,95288.0,95287.0,0.00068]
[1736347347942,0.052486,95287.0,95284.0,0.3608]
[1736347348239,0.3608,95289.0,95273.0,0.00011437]
[1736347348439,0.3608,95279.0,95273.0,0.00011437]
[1736347348641,0.052493,95274.0,95273.0,0.00011437]
[1736347348841,0.3608,95279.0,95273.0,0.00011437]
[1736347349042,0.41329,95279.0,95273.0,0.00011437]
[1736347349226,0.052492,95276.0,95273.0,0.00011437]
[1736347349933,0.3608,95279.0,95273.0,0.00011437]
[1736347349934,0.052493,95274.0,95273.0,0.00011437]
[1736347350340,0.052493,95274.0,95252.0,0.00157465]
[1736347350341,0.3608,95278.0,95252.0,0.00157465]
[1736347350533,0.3608,95257.0,95252.0,0.00157465]
[1736347350930,0.3608,95253.0,95252.0,0.00157465]
[1736347351333,0.36088972,95253.0,95252.0,0.00157465]
[1736347351533,0.36088972,95253.0,95243.0,0.05251]
[1736347351840,8.972e-05,95253.0,95251.0,0.413305]
[1736347352048,8.972e-05,95253.0,95252.0,0.47044]
[1736347352541,8.972e-05,95253.0,95252.0,0.47244]
[1736347353435,7.2e-07,95253.0,95252.0,0.47144]
[1736347353747,7.2e-07,95253.0,95252.0,0.77144]
[1736347354137,7.2e-07,95253.0,95252.0,0.81737736]
[1736347354337,7.2e-07,95253.0,95252.0,0.4714]
[1736347354546,0.05249,95280.0,95252.0,0.7714]
[1736347354741,0.05249,95280.0,95275.0,0.052492]
[1736347355241,0.05249,95280.0,95260.0,0.6051149]
[1736347355242,0.3608,95282.0,95260.0,0.6051149]
[1736347355435,0.3608,95282.0,95260.0,0.3608]
[1736347355641,0.052489,95281.0,95275.0,0.052492]
[1736347355841,0.3608,95282.0,95260.0,0.3608]
[1736347356042,0.052497,95267.0,95260.0,0.3608]
[1736347356343,0.052504,95253.0,95252.0,0.001]
[1736347356535,0.413304,95253.0,95252.0,0.001]
[1736347356731,0.0525,95261.0,95252.0,0.053505]
[1736347356932,0.3608,95263.0,95252.0,0.001]
[1736347357140,0.3608,95263.0,95247.0,0.052507]
[1736347357647,0.05251,95243.0,95242.0,0.00157482]
[1736347357835,0.3608,95246.0,95242.0,0.00157482]
[1736347358145,0.05251,95243.0,95242.0,0.00157482]
[1736347358338,0.3608,95246.0,95242.0,0.00157482]
[1736347358531,0.3608,95254.0,95242.0,0.00157482]
[1736347358532,0.3608,95254.0,95253.0,0.052504]
[1736347358941,0.3608,95267.0,95265.0,0.052497]
[1736347359146,0.3608,95280.0,95263.0,0.3608]
[1736347359441,0.3608,95289.0,95271.0,0.3608]
[1736347359650,0.1553424,95291.0,95280.0,0.052489]
[1736347360348,0.052483,95292.0,95286.0,0.052486]
[1736347360550,0.3608,95295.0,95280.0,0.2443149]
[1736347360736,0.3608,95295.0,95293.0,0.052482]
[1736347361445,0.052484,95290.0,95284.0,0.052487]
[1736347361650,0.3608,95295.0,95278.0,0.05249]
[1736347361944,0.3608,95295.0,95274.0,0.4704]
[1736347362340,0.052487,95285.0,95274.0,0.4704]
[1736347362647,0.3608,95286.0,95274.0,0.4704]
[1736347362648,0.3608,95286.0,95284.0,0.052487]
[1736347362841,0.052488,95283.0,95278.0,0.05249]
[1736347363152,0.052492,95276.0,95274.0,0.471]
[1736347363448,0.3608,95275.0,95274.0,0.4704]
[1736347363845,0.3608,95275.0,95267.0,7.578e-05]
[1736347364048,0.052496,95268.0,95267.0,7.578e-05]
[1736347365646,0.052496,95269.0,95267.0,7.578e-05]
[1736347365856,0.052496,95269.0,95267.0,0.00107578]
[1736347366147,0.3,95269.0,95241.0,0.1869394]
[1736347366352,0.77411,95243.0,95241.0,0.1869394]
[1736347366853,0.052525,95215.0,95204.0,0.052531]
[1736347367055,0.413325,95215.0,95204.0,0.052531]
[1736347367245,0.36090043,95215.0,95213.0,0.052526]
[1736347367552,0.36090043,95215.0,95208.0,0.0006]
[1736347367849,0.36090043,95215.0,95187.0,0.3608]
[1736347368053,0.3608,95199.0,95197.0,0.052535]
[1736347368249,0.052529,95209.0,95189.0,0.052539]
[1736347368449,0.36090043,95215.0,95187.0,0.41334]
[1736347368648,0.052526,95214.0,95188.0,0.09964117]
[1736347368842,0.3608,95204.0,95189.0,0.04710117]
[1736347369043,0.3608,95194.0,95192.0,0.052538]
[1736347369345,0.3608,95194.0,95181.0,0.00157583]
[1736347369346,0.00010043,95193.0,95181.0,0.00157583]
[1736347369545,0.052544,95182.0,95181.0,0.00157583]
[1736347369741,0.3608,95183.0,95181.0,0.00157583]
[1736347371154,0.052544,95182.0,95181.0,0.00157583]
[1736347371455,0.052551,95169.0,95148.0,0.052562]
[1736347371758,0.3608,95169.0,95139.0,0.01576]
[1736347372056,0.3608,95146.0,95133.0,0.47052]
[1736347372251,0.3608,95146.0,95144.0,0.052564]
[1736347372661,9.955e-05,95145.0,95144.0,0.052564]
[1736347373550,9.955e-05,95145.0,95144.0,0.055564]
[1736347375851,9.955e-05,95145.0,95144.0,0.003]
[1736347376161,0.05266355,95145.0,95144.0,0.003]
[1736347377375,9.955e-05,95145.0,95144.0,0.003]
[1736347380655,0.3608,95167.0,95144.0,0.303]
[1736347380857,0.3608,95167.0,95154.0,0.3608]
[1736347381058,0.052553,95166.0,95154.0,0.413359]
[1736347381252,0.3608,95167.0,95154.0,0.3608]
[1736347381462,0.3608,95167.0,95163.0,0.052554]
[1736347381661,7.457e-05,95166.0,95154.0,0.3608]
[1736347382158,0.052562,95150.0,95149.0,0.052561]
[1736347382357,0.052558,95156.0,95144.0,0.003]
[1736347382558,0.3608,95159.0,95151.0,0.05256]
[1736347382758,0.3608,95159.0,95144.0,0.003]
[1736347382759,0.052564,95146.0,95144.0,0.003]
[1736347382958,0.052565,95144.0,95124.0,0.052575]
[1736347383161,0.3608,95154.0,95145.0,0.052564]
[1736347383355,0.05256,95153.0,95145.0,0.052564]
[1736347383556,0.3608,95154.0,95138.0,0.3608]
[1736347383759,0.052561,95150.0,95149.0,0.052561]
[1736347383965,0.3608,95154.0,95153.0,0.05256]
[1736347384267,0.052564,95145.0,95144.0,0.003]
[1736347384466,0.413364,95145.0,95144.0,0.003]
[1736347384654,0.052569,95137.0,95117.0,0.052579]
[1736347384877,0.052579,95119.0,95118.0,0.052579]
[1736347385665,0.3608,95129.0,95110.0,0.3608]
[1736347385864,0.3608,95129.0,95107.0,0.1205]
[1736347385865,0.052575,95125.0,95124.0,0.052574]
[1736347386367,0.3608,95129.0,95128.0,0.052573]
[1736347386767,7.457e-05,95145.0,95128.0,0.413373]
[1736347386961,7.457e-05,95145.0,95144.0,0.052565]
[1736347387274,0.052564,95145.0,95138.0,0.83168]
[1736347387466,0.052564,95145.0,95143.0,0.052565]
[1736347387665,0.3608,95153.0,95138.0,0.053167]
[1736347387666,0.052567,95140.0,95138.0,0.053167]
[1736347387972,0.052567,95140.0,95138.0,0.052567]
[1736347388567,0.052562,95148.0,95146.0,0.052563]
[1736347388776,0.052563,95147.0,95146.0,0.052563]
[1736347388977,0.052564,95145.0,95128.0,0.83568]
[1736347389162,0.052561,95151.0,95130.0,0.2443149]
[1736347389468,0.052561,95151.0,95150.0,0.052561]
[1736347390676,0.3608,95153.0,95146.0,0.001]
[1736347390877,0.052559,95154.0,95152.0,0.05256]
[1736347391074,0.052562,95148.0,95146.0,0.052563]
[1736347391380,0.052563,95147.0,95146.0,0.052563]
[1736347391977,0.3608,95153.0,95137.0,0.3608]
[1736347392172,0.052578,95120.0,95119.0,0.3608]
[1736347392382,0.052578,95120.0,95119.0,0.413378]
[1736347392586,0.3608,95133.0,95123.0,0.052576]
[1736347392587,0.052575,95125.0,95123.0,0.052576]
[1736347392782,0.3608,95133.0,95119.0,0.3608]
[1736347392983,0.0108362,95153.0,95132.0,0.052571]
[1736347393188,0.052571,95133.0,95132.0,0.052571]
[1736347393894,0.052566,95142.0,95126.0,0.052574]
[1736347394086,0.052565,95143.0,95130.0,0.052572]
[1736347394288,0.05257,95135.0,95133.0,0.05257]
[1736347394494,0.05257,95134.0,95133.0,0.05257]
[1736347394792,0.052567,95140.0,95134.0,0.0158]
[1736347394993,0.052564,95145.0,95143.0,0.052565]
[1736347395291,0.413358,95157.0,95156.0,0.052558]
[1736347395893,0.3608,95157.0,95156.0,0.052558]
[1736347396088,0.052555,95161.0,95160.0,0.052556]
[1736347396294,0.052555,95161.0,95156.0,0.3608]
[1736347396295,0.1553424,95166.0,95165.0,0.052553]
[1736347396581,0.3608,95193.0,95158.0,0.3608]
[1736347396582,0.1553424,95179.0,95158.0,0.3608]
[1736347396784,0.052548,95174.0,95173.0,0.052547]
[1736347396985,0.1553424,95179.0,95178.0,0.052546]
[1736347397188,0.1553424,95179.0,95170.0,0.3608]
[1736347397386,0.052549,95173.0,95172.0,0.052549]
[1736347397594,0.1553424,95179.0,95170.0,0.83232]
[1736347397788,0.413982,95185.0,95184.0,0.052542]
[1736347398000,0.413342,95185.0,95184.0,0.052542]
[1736347398386,0.3608,95185.0,95184.0,0.052542]
[1736347399185,0.3608,95185.0,95170.0,0.001]
[1736347399389,0.3608,95177.0,95175.0,0.052547]
[1736347399589,0.052546,95178.0,95176.0,0.052547]
[1736347399794,0.3608,95177.0,95170.0,0.001]
[1736347399997,0.052547,95176.0,95175.0,0.052547]
[1736347400385,0.3628,95185.0,95177.0,0.052546]
[1736347400589,0.3628,95185.0,95168.0,0.3608]
[1736347400895,0.5181424,95185.0,95169.0,0.04718686]
[1736347401097,0.05255,95170.0,95169.0,0.04718686]
[1736347401292,0.052547,95175.0,95169.0,0.04718686]
[1736347401492,0.052547,95175.0,95174.0,0.052548]
[1736347401688,0.052549,95173.0,95169.0,0.04718686]
[1736347401989,0.05255,95170.0,95169.0,0.04718686]
[1736347402183,0.052553,95166.0,95162.0,0.052554]
[1736347402387,0.052549,95173.0,95169.0,0.05255]
[1736347402594,0.3608,95176.0,95175.0,0.052547]
[1736347402795,0.052548,95174.0,95158.0,0.3608]
[1736347402997,0.05255,95171.0,95170.0,0.05255]
[1736347403193,0.3608,95176.0,95158.0,0.3608]
[1736347403388,0.3608,95159.0,95153.0,0.00064]
[1736347403593,0.3608,95159.0,95154.0,0.04729628]
[1736347403791,0.3608,95159.0,95150.0,0.00157633]
[1736347403993,0.052564,95146.0,95131.0,0.31382338]